[Event "26th Triest Festival 2024"]
[Site "Triest"]
[Date "2024.09.04"]
[Round "7.11"]
[White "Candian, Lorenzo"]
[Black "Kanyamarala, Tarun"]
[Result "1/2-1/2"]
[ECO "B30"]
[WhiteElo "2164"]
[BlackElo "2361"]
[Annotator "TA"]
[PlyCount "115"]
[EventDate "2024.09.02"]
[EventType "swiss"]
[EventCountry "ITA"]
[SourceTitle "playchess.com"]
[Source "ChessBase"]
[SourceQuality "1"]
[TimeControl "5400+30"]

{[%evp 28,115,11,5,16,11,20,0,0,0,0,-19,0,2,14,-12,-10,-89,-89,-119,-120,-118,-84,-81,-80,-121,-104,-150,0,0,0,0,0,0,211,-166,-178,-174,-161,-160,-154,-170,0,-59,-19,-164,-149,-166,-153,-281,-277,-272,-162,-146,-155,-397,-255,-265,-272,-280,-123,-136,-74,-67,-106,-109,-52,-56,-46,-53,0,0,0,0,12,0,0,0,0,0,0,0,0,0,0,0,0,0,0,0]} 1. e4 {[%emt 0:00:02]} c5 {[%emt 0:00:09]} 2. Nf3 {[%emt 0:00:03]} Nc6 {[%emt 0:00:09]} 3. Bb5 {[%emt 0:00:06]} Nf6 {[%emt 0:00:15]} 4. e5 {[%emt 0:01:15]} Nd5 {[%emt 0:00:18]} 5. Nc3 {[%emt 0:00:53]} Nc7 {[%emt 0:01:02]} 6. Bxc6 {[%emt 0:00:03]} dxc6 {[%emt 0:00:14]} 7. h3 {[%emt 0:00:04]} Ne6 {[%emt 0:02:06] B30: Sicilian: 2...Nc6 3 Bb5, lines without ...g6.} 8. d3 {[%emt 0:02:58]} g6 {[%emt 0:00:46]} 9. Ne4 {[%emt 0:20:08]} Bg7 {[%emt 0:00:40]} 10. b3 {[%emt 0:00:42]} b6 {[%emt 0:07:02]} 11. Bb2 {[%emt 0:00:34]} a5 {[%emt 0:02:27]} 12. a4 {[%emt 0:00:31]} Ra7 $146 {[%emt 0:03:55]} ({Predecessor:} 12... f5 13. Neg5 Nd4 14. h4 Qc7 15. Kf1 h6 16. Nh3 Bxe5 17. Nxe5 Qxe5 18. c3 Ne6 {½-½ Kalogeris,I (2427)-Stremavicius,T (2540) Menorca op 3rd 2024 (5)}) 13. Qd2 {[%emt 0:11:40]} O-O {[%emt 0:00:56]} 14. O-O {[%emt 0:12:45]} f5 {[%emt 0:12:45]} 15. exf6 {[%emt 0:02:53]} exf6 {[%emt 0:00:08]} 16. Rfe1 {[%emt 0:03:02]} Re8 {[%emt 0:10:39]} 17. Re2 {[%emt 0:09:30]} f5 {[%emt 0:04:21]} 18. Nc3 $1 {[%emt 0:01:38]} Rae7 {[%emt 0:04:36]} 19. Rae1 {[%emt 0:01:15]} Bb7 {[%emt 0:05:31]} 20. Nd1 {[%emt 0:10:37]} Nd4 $1 {[%emt 0:00:30]} 21. Nxd4 {[%emt 0:00:15]} (21. Rxe7 {simplifies} Rxe7 22. Bxd4 cxd4 23. Rxe7 Qxe7 24. Nb2) 21... cxd4 {[%emt 0:00:10]} 22. c3 {[%emt 0:01:24]} (22. Rxe7 $11 {keeps the balance.} Rxe7 23. Rxe7 Qxe7 24. Bc1) 22... c5 {[%emt 0:04:00]} 23. cxd4 {[%emt 0:04:18]} cxd4 {[%emt 0:01:18]} 24. Ba3 {[%emt 0:03:11]} Qd5 {[%emt 0:04:23]} (24... Rxe2 {simplifies} 25. Rxe2 Bd5 26. Rxe8+ Qxe8 27. Nb2 Bxb3 28. Qc1 h5) 25. f3 {[%emt 0:00:39]} Re6 {[%emt 0:04:07]} 26. Nb2 {[%emt 0:03:56]} Qxb3 {[%emt 0:07:57]} 27. Nc4 {[%emt 0:00:04]} ({White should play} 27. Qf4 Bd5 (27... Rxe2 28. Rxe2 $17) (27... Qxa3 $2 28. Rxe6 Rxe6 29. Rxe6 $18) 28. Rxe6 Bxe6 29. Nc4 Qxa4 (29... Qxd3 30. Rxe6 Rxe6 31. Qb8+ Kf7 32. Qc7+ Kf6 33. Qd8+ Kf7 34. Qd7+ Kf6 35. Qd8+ Kf7 36. Ne5+ Rxe5 37. Qc7+ Ke8 38. Qc6+ Kd8 39. Qxb6+ Kc8 40. Qc6+ Kd8 41. Qb6+ Kc8 42. Qc6+ Kd8 43. Qa8+ Kc7 44. Qa7+ Kc6 45. Qa8+ Kc7 46. Qa7+ Kc8 47. Qa8+ Kc7 $11) 30. Nd6) 27... Rxe2 {[%emt 0:03:57]} ({Better is} 27... Bh6 $1 $17 {[%cal Rh6d2]} 28. Rxe6 Rxe6 (28... Bxd2 29. Rxe8+ Kf7 30. R8e7+ Kg8 31. Nxd2 $18) 29. Qxh6 Rxe1+ 30. Kh2 Re8 (30... Qxa4 31. Qf8#)) 28. Rxe2 $11 {[%emt 0:00:02]} Qxa4 {[%emt 0:06:17]} 29. Rxe8+ {[%emt 0:00:27]} Qxe8 {[%emt 0:00:05]} 30. Nd6 $1 {[%emt 0:00:04]} Qc6 $2 {[%emt 0:10:34]} (30... Qa8 $11 {and Black stays safe.}) 31. Qg5 $4 {[%emt 0:00:22][%mdl 8192]} (31. Qe2 $18 {White threatens Qe6+ and mate.} h5 (31... Qd7 $2 32. Qa2+ Kh8 33. Nf7+ $18) 32. Qe7) 31... Qd7 $19 {[%emt 0:00:43]} 32. Nxb7 {[%emt 0:00:09]} Qxb7 {[%emt 0:00:01]} 33. Qd8+ {[%emt 0:00:01]} Kf7 {[%emt 0:00:08]} 34. Bd6 {[%emt 0:01:09]} Bf6 $2 {[%emt 0:01:03]} ({Black should try} 34... h6 $19 {Hoping for ...g5.} 35. f4 a4) 35. Qf8+ $11 {[%emt 0:00:16]} Ke6 {[%emt 0:00:01]} 36. Bf4 {[%emt 0:01:28]} (36. Ba3 $1 $11 {and White has nothing to worry.}) 36... Be7 $19 {[%emt 0:04:16]} 37. Qg8+ {[%emt 0:00:55]} Kd7 {[%emt 0:00:01]} 38. Qc4 {[%emt 0:00:02]} (38. Qxh7 $17 Qc6 39. Bg5) 38... Qc6 $19 {[%emt 0:01:11]} 39. Qxd4+ {[%emt 0:00:09] [#]} Kc8 {[%emt 0:00:28]} (39... Bd6 $142 $1 {...Qc5 would now be deadly.} 40. Kh1 b5) 40. Qh8+ $19 {[%emt 0:00:15]} Bd8 {[%emt 0:00:37]} 41. d4 $2 {[%emt 0:01:53]} (41. Bg5 $17 Qd6 42. Bxd8 Qxd8 43. Qxh7) 41... Qd7 {[%emt 0:00:31]} 42. Be5 {[%emt 0:00:50]} Kb7 {[%emt 0:00:18]} 43. Qg8 {[%emt 0:00:29] [#]} b5 {[%emt 0:00:33]} (43... Bc7 $1 $19 44. f4 a4) 44. d5 $17 {[%emt 0:00:23]} Bc7 {[%emt 0:00:20]} (44... g5 $142 {Threatens to win with ...a4.} 45. d6 Bb6+ 46. Kh2 Be3) 45. d6 $17 {[%emt 0:00:39]} Bb6+ {[%emt 0:00:33]} (45... Bxd6 46. Qd5+ Qc6 47. Qxd6 $11) 46. Kh2 {[%emt 0:00:02]} a4 {[%emt 0:00:21]} (46... Bc5 $17 47. Kg3 Ka7 (47... Bxd6 48. Qd5+ Qc6 49. Qxd6 $11)) 47. Qd5+ $15 {[%emt 0:00:05]} Ka7 {[%emt 0:00:09]} 48. Bc3 {[%emt 0:00:53]} Ka6 {[%emt 0:01:06]} (48... h6 $15) 49. Qa8+ $11 {[%emt 0:01:26]} Ba7 {[%emt 0:00:12]} 50. Bb4 {[%emt 0:00:04]} Kb6 {[%emt 0:00:45]} 51. Kh1 {[%emt 0:01:08]} Ka6 {[%emt 0:00:32]} 52. Bc5 {[%emt 0:00:08]} a3 $1 {[%emt 0:00:30]} ({Don't blunder} 52... Qb7 $2 53. Qxa7+ (53. Qxb7+ Kxb7 54. Bxa7 a3 $18) 53... Qxa7 54. Bxa7 $18) 53. Bxa3 {[%emt 0:00:38]} Qb7 {[%emt 0:00:45]} 54. Qe8 {[%emt 0:03:19]} Qd5 {[%emt 0:00:09]} 55. Qc8+ {[%emt 0:01:38]} Ka5 {[%emt 0:00:01]} 56. Qc3+ {[%emt 0:00:16]} Ka6 {[%emt 0:00:01]} 57. Qc8+ {[%emt 0:00:01]} Ka5 {[%emt 0:00:00]} 58. Qc3+ {[%emt 0:00:02]} 1/2-1/2

[Event "26th Triest Festival 2024"]
[Site "Triest"]
[Date "2024.09.04"]
[Round "7.12"]
[White "Papadiamandis, Elliot"]
[Black "Kubik, Rafal"]
[Result "1/2-1/2"]
[ECO "B53"]
[WhiteElo "2329"]
[BlackElo "2164"]
[Annotator "TA"]
[PlyCount "139"]
[EventDate "2024.09.02"]
[EventType "swiss"]
[EventCountry "ITA"]
[SourceTitle "playchess.com"]
[Source "ChessBase"]
[SourceQuality "1"]
[TimeControl "5400+30"]

{[%evp 21,139,12,22,17,43,45,37,25,26,23,23,-3,-3,0,20,31,42,30,39,49,46,30,52,17,28,18,45,46,41,45,55,20,200,187,247,246,238,168,162,132,137,139,124,124,154,120,146,145,120,70,88,44,39,37,44,37,41,39,44,44,44,44,44,40,37,37,40,14,35,0,53,53,117,115,108,64,184,85,177,117,107,85,79,96,90,0,0,0,0,0,0,0,0,0,0,0,0,0,0,0,0,0,0,0,0,0,0,0,0,0,0,0,0,0,0,0,0,0,0,0]} 1. e4 {[%emt 0:00:09]} c5 {[%emt 0:01:59]} 2. Nf3 {[%emt 0:00:09]} d6 {[%emt 0:00:05]} 3. d4 {[%emt 1:31:42]} cxd4 {[%emt 0:00:05]} 4. Qxd4 {[%emt 0:00:11]} Nc6 {[%emt 1:30:21]} 5. Bb5 {[%emt 0:00:22]} Bd7 {[%emt 0:00:14]} 6. Qd3 {[%emt 0:01:03]} g6 {[%emt 0:02:03] seems to push 6...Nf6 aside.} 7. O-O {[%emt 1:31:56] B53: Sicilian: 2...d6: Lines with Qxd4.} Bg7 {[%emt 0:03:01]} 8. c4 {[%emt 0:03:17]} Nf6 {[%emt 0:02:47]} 9. Nc3 {[%emt 0:09:47]} O-O {[%emt 0:03:39]} 10. Rd1 {[%emt 0:05:48]} a6 {[%emt 0:03:18]} 11. Bxc6 {[%emt 0:00:45]} Bxc6 {[%emt 0:00:34]} 12. Be3 {[%emt 0:03:44]} Nd7 {[%emt 0:06:14]} 13. Nd4 {[%emt 0:10:20]} Rc8 {[%emt 0:06:56]} 14. Rac1 {[%emt 0:01:37]} Ne5 {[%emt 0:04:42]} 15. Qe2 {[%emt 0:02:35]} Bd7 {[%emt 0:01:21]} 16. Nd5 $146 {[%emt 0:06:28]} ({Predecessor:} 16. b3 Qa5 17. Nd5 Rfe8 18. b4 Qd8 19. Nb3 Ba4 20. Nb6 Bxb3 21. axb3 Rc6 22. c5 {1-0 Perez,M (2417)-Mazi,L (2340) Titled Tuesday intern op 13th Oct blitz 2020 (10)}) 16... e6 {[%emt 0:03:00]} 17. Nf4 $1 {[%emt 0:01:10]} Qe7 {[%emt 0:07:15]} 18. b3 {[%emt 0:01:41]} Nc6 {[%emt 0:04:42]} 19. Nf3 {[%emt 0:04:15]} Ne5 {[%emt 0:01:23]} 20. Nxe5 {[%emt 0:06:57]} Bxe5 {[%emt 0:01:29]} 21. Nd3 {[%emt 0:00:40]} Bg7 {[%emt 0:01:29]} 22. Rc2 {[%emt 0:03:05]} Bc6 {[%emt 0:02:16]} 23. Bf4 {[%emt 0:02:06]} Bd4 {[%emt 0:09:55]} 24. Nb4 {[%emt 0:01:48]} Bc5 {[%emt 0:01:12]} 25. Nxc6 {[%emt 0:00:42]} Rxc6 {[%emt 0:02:30]} 26. Rcd2 {[%emt 0:02:58]} f5 $2 {[%emt 0:03:47]} (26... e5 $11 27. Bh6 Rb8) 27. e5 $1 $18 {[%emt 0:01:46]} Rd8 {[%emt 0:06:25]} (27... d5 $142 28. cxd5 exd5 29. Rxd5 Qe6) 28. exd6 $18 {[%emt 0:01:32]} Bxd6 {[%emt 0:00:28]} 29. Qd3 {[%emt 0:01:14]} (29. c5 Bc7) 29... Kf7 {[%emt 0:04:16]} 30. Bxd6 {[%emt 0:02:41]} Rcxd6 {[%emt 0:00:08]} 31. Qxd6 {[%emt 0:00:08]} Rxd6 {[%emt 0:00:01]} 32. Rxd6 {[%emt 0:00:04]} Ke8 {[%emt 0:00:40]} 33. c5 {[%emt 0:17:52]} e5 {[%emt 0:01:30]} 34. b4 {[%emt 0:01:22]} e4 {[%emt 0:01:06]} 35. a4 {[%emt 0:01:06]} (35. a3 $16) 35... e3 $14 {[%emt 0:02:13]} 36. Re1 {[%emt 0:01:32]} f4 {[%emt 0:00:25]} 37. fxe3 {[%emt 0:02:04]} fxe3 {[%emt 0:01:16]} 38. Rd3 {[%emt 0:00:23]} e2 {[%emt 0:00:06]} 39. Kh1 {[%emt 0:02:04]} (39. Kf2 Qh4+ 40. Kxe2 Kf8 $11) 39... Qe4 {[%emt 0:01:22]} 40. Rb3 {[%emt 0:01:28]} (40. Rd2 Qxb4 41. Rdxe2+ (41. Rexe2+ Kf8 $11) 41... Kf8) 40... Kd7 {[%emt 0:14:08]} 41. Rb2 {[%emt 0:01:32]} Qd4 {[%emt 0:00:20]} 42. Rbxe2 {[%emt 0:00:53]} (42. Rexe2 $2 {gets mated.} Qd1+) 42... Qxb4 {[%emt 0:00:06]} 43. Re7+ {[%emt 0:01:05]} Kc6 {[%emt 0:00:29]} 44. h3 {[%emt 0:00:53]} Kxc5 {[%emt 0:03:37]} 45. Rc1+ {[%emt 0:01:56]} Kd6 {[%emt 0:00:20]} ({Black should try} 45... Kb6 $11 46. Rxh7 g5) 46. Rxh7 $14 {[%emt 0:00:06]} b5 {[%emt 0:00:08]} (46... g5 $14) 47. axb5 $16 {[%emt 0:00:30]} axb5 {[%emt 0:00:07]} 48. Rf7 {[%emt 0:01:33]} Qb2 {[%emt 0:01:22] [#]} ({Better is} 48... g5 $1 $14) 49. Rd1+ {[%emt 0:00:26]} (49. Rff1 $1 $18) 49... Ke6 {[%emt 0:00:24] [#]} (49... Kc5 $16 {was called for.}) 50. Rf3 {[%emt 0:00:06]} (50. Rff1 $1 $18) 50... b4 $16 {[%emt 0:00:28]} 51. Re1+ {[%emt 0:01:55]} Kd5 {[%emt 0:00:21]} 52. Kh2 {[%emt 0:00:48]} Qc2 {[%emt 0:00:53]} 53. Ree3 {[%emt 0:00:24]} (53. Rfe3 $16) 53... Qc7+ $11 {[%emt 0:00:33]} 54. Kg1 {[%emt 0:00:22]} Qc1+ {[%emt 0:00:25]} 55. Kf2 {[%emt 0:00:23]} Qc2+ {[%emt 0:00:22]} 56. Kg3 {[%emt 0:00:05]} Qc7+ {[%emt 0:00:22]} 57. Kg4 {[%emt 0:00:31]} Qc8+ {[%emt 0:00:37]} 58. Kg5 {[%emt 0:03:36]} Qd8+ {[%emt 0:00:16]} 59. Kxg6 {[%emt 0:00:26]} Qg8+ {[%emt 0:00:09]} 60. Kf5 {[%emt 0:00:23]} Qf7+ {[%emt 0:00:19]} 61. Kg4 {[%emt 0:00:17]} Qg6+ {[%emt 0:00:12]} 62. Kf4 {[%emt 0:00:10]} Qxg2 {[%emt 0:00:03]} 63. h4 {[%emt 0:00:30]} Qg6 {[%emt 0:00:27]} 64. Rg3 {[%emt 0:02:01]} Qf6+ {[%emt 0:10:52]} 65. Kg4 {[%emt 0:00:01]} Qg6+ {[%emt 0:00:13]} 66. Kh3 {[%emt 0:00:15]} Qf5+ {[%emt 0:00:30]} 67. Kg2 {[%emt 0:00:36]} Qc2+ {[%emt 0:00:07]} 68. Kh3 {[%emt 0:00:03]} Qf5+ {[%emt 0:00:05]} 69. Kg2 {[%emt 0:00:40]} Qc2+ {[%emt 0:00:05]} 70. Kh3 {[%emt 0:00:47]} 1/2-1/2